fUSD/lending_fUSD_20260515
["ID","MTS","AMOUNT","RATE_DAILY","PERIOD"]
[422283893,1778793052000,-649.34,0.00026373,2]
[422283894,1778793052000,-1182.15,0.00026373,2]
[422283895,1778793052000,-1865.51,0.00026373,2]
[422283897,1778793052000,-1182.11,0.00026373,2]
[422283856,1778793052000,-1865.51,0.00026229,7]
[422283896,1778793052000,-644.91,0.00026373,2]
[422283888,1778793052000,-1865.51,0.00026344,7]
[422283876,1778793052000,-2254.1,0.00026296,2]
[422283892,1778793052000,-1313.87,0.00026344,7]
[422283871,1778793052000,-1865.51,0.00026286,2]
[422283861,1778793052000,-2433.07,0.00026243,7]
[422283877,1778793052000,-6445.64661898,0.000263,2]
[422283858,1778793052000,-1182.11,0.00026229,7]
[422283859,1778793052000,-1861.16,0.00026229,7]
[422283860,1778793052000,-1313.87,0.00026229,7]
[422283862,1778793052000,-649.34,0.00026257,30]
[422283870,1778793052000,-1182.15,0.00026286,2]
[422283867,1778793052000,-1861.16,0.00026257,2]
[422283865,1778793052000,-644.91,0.00026257,30]
[422283863,1778793052000,-1182.15,0.00026257,2]
[422283868,1778793052000,-1313.87,0.00026257,2]
[422283873,1778793052000,-1182.11,0.00026286,2]
[422283869,1778793052000,-649.34,0.00026286,2]
[422283866,1778793052000,-1182.11,0.00026257,2]
[422283875,1778793052000,-1313.87,0.00026286,2]
[422283878,1778793052000,-1291.11,0.000263,7]
[422283864,1778793052000,-1865.51,0.00026257,2]
[422283879,1778793052000,-649.34,0.00026315,7]
[422283874,1778793052000,-1861.16,0.00026286,2]
[422283945,1778793053000,-1865.51,0.00026546,2]
[422283939,1778793053000,-1182.11,0.00026517,7]
[422283940,1778793053000,-1861.16,0.00026517,7]
[422283938,1778793053000,-644.91,0.00026517,30]
[422283933,1778793053000,-214.95940296,0.000265,7]
[422283934,1778793053000,-6445.64661898,0.000265,2]
[422283932,1778793053000,-1313.87,0.00026488,7]
[422283936,1778793053000,-1182.15,0.00026517,7]
[422283943,1778793053000,-649.34,0.00026546,2]
[422283930,1778793053000,-1182.11,0.00026488,7]
[422283942,1778793053000,-2433.07,0.00026532,7]
[422283937,1778793053000,-1865.51,0.00026517,7]
[422283944,1778793053000,-1182.15,0.00026546,2]
[422283955,1778793053000,-644.95,0.00026575,7]
[422283949,1778793053000,-1313.87,0.00026546,2]
[422283951,1778793053000,-649.5,0.00026575,7]
[422283948,1778793053000,-1861.16,0.00026546,2]
[422283950,1778793053000,-1182.22,0.00026575,7]
[422283946,1778793053000,-644.91,0.00026546,2]
[422283952,1778793053000,-1182.29,0.00026575,7]
[422283953,1778793053000,-1865.66,0.00026575,7]
[422283957,1778793053000,-1861.25,0.00026575,7]
[422283954,1778793053000,-1622.06,0.00026575,7]
[422283956,1778793053000,-1182.24,0.00026575,7]
[422283966,1778793053000,-1270.0,0.00026699,2]
[422283965,1778793053000,-3542.0,0.00026699,2]
[422283941,1778793053000,-1313.87,0.00026517,7]
[422283961,1778793053000,-2433.07,0.00026676,2]
[422283947,1778793053000,-1182.11,0.00026546,2]
[422283931,1778793053000,-1861.16,0.00026488,7]
[422283908,1778793053000,-644.91,0.00026402,7]
[422283927,1778793053000,-1182.15,0.00026488,7]
[422283963,1778793053000,-926.0,0.00026699,2]
[422283902,1778793053000,-263.30688069,0.00026397,2]
[422283901,1778793053000,-200.0,0.0002639,7]
[422283900,1778793053000,-2433.07,0.00026388,2]
[422283903,1778793053000,-792.82727649,0.00026397,2]
[422283898,1778793053000,-1861.16,0.00026373,2]
[422283899,1778793053000,-1313.87,0.00026373,2]
[422283905,1778793053000,-649.34,0.00026402,7]
[422283916,1778793053000,-1182.11,0.00026431,2]
[422283904,1778793053000,-27845.66932154,0.000264,2]
[422283906,1778793053000,-1182.15,0.00026402,7]
[422283915,1778793053000,-644.91,0.00026431,30]
[422283912,1778793053000,-649.34,0.00026431,30]
[422283913,1778793053000,-1182.15,0.00026431,2]
[422283924,1778793053000,-1861.16,0.00026459,2]
[422283911,1778793053000,-1313.87,0.00026402,7]
[422283914,1778793053000,-1865.51,0.00026431,2]
[422283907,1778793053000,-1865.51,0.00026402,7]
[422283910,1778793053000,-1861.16,0.00026402,7]
[422283917,1778793053000,-1861.16,0.00026431,2]
[422283918,1778793053000,-1313.87,0.00026431,2]
[422283920,1778793053000,-1182.15,0.00026459,2]
[422283921,1778793053000,-1865.51,0.00026459,2]
[422283929,1778793053000,-644.91,0.00026488,7]
[422283928,1778793053000,-1865.51,0.00026488,7]
[422283919,1778793053000,-649.34,0.00026459,2]
[422283922,1778793053000,-644.91,0.00026459,2]
[422283923,1778793053000,-1182.11,0.00026459,2]
[422283925,1778793053000,-1313.87,0.00026459,2]
[422283926,1778793053000,-649.34,0.00026488,7]
[422283909,1778793053000,-1182.11,0.00026402,7]
[422283962,1778793053000,-1000.0,0.00026686,2]
[422283935,1778793053000,-649.34,0.00026517,30]
[422283959,1778793053000,-200.0,0.0002659,20]
[422283999,1778793053000,-2433.07,0.00027253,2]
[422283997,1778793053000,-500.0,0.00027224,6]
[422284004,1778793053000,-150.0,0.00027297,2]
[422284000,1778793053000,-150.0,0.00027297,2]
[422283998,1778793053000,-526.86,0.00027224,6]
[422284001,1778793053000,-150.0,0.00027297,2]
[422284003,1778793053000,-150.0,0.00027297,2]
[422284002,1778793053000,-150.0,0.00027297,2]
[422284008,1778793053000,-1001.9,0.00027357,2]
[422284012,1778793053000,-150.0,0.00027396,2]
[422284010,1778793053000,-272.0,0.00027386,7]
[422284011,1778793053000,-150.0,0.00027396,2]
[422284016,1778793053000,-227.9713253,0.00027397,7]
[422284013,1778793053000,-229.47109954,0.00027396,2]
[422284018,1778793053000,-481.97133773,0.00027397,2]
[422284015,1778793053000,-911.88530111,0.00027397,7]
[422284017,1778793053000,-175.53792046,0.00027397,7]
[422284009,1778793053000,-1001.9,0.00027386,2]
[422284021,1778793053000,-1343.19200131,0.00027397,2]
[422284019,1778793053000,-528.55151766,0.00027397,7]
[422284014,1778793053000,-1771.03640697,0.00027397,30]
[422284020,1778793053000,-200.0,0.00027397,2]
[422284023,1778793053000,-150.0,0.00027397,30]
[422284022,1778793053000,-200.0,0.00027397,2]
[422284025,1778793053000,-1500.0,0.00027397,2]
[422284024,1778793053000,-186.4,0.00027397,3]
[422284026,1778793053000,-2000.0,0.00027397,7]
[422284027,1778793053000,-2000.0,0.00027397,7]
[422283958,1778793053000,-1313.96,0.00026575,7]
[422283994,1778793053000,-2869.65546085,0.00027111,2]
[422284007,1778793053000,-1001.9,0.00027329,2]
[422283996,1778793053000,-500.0,0.00027224,6]
[422283972,1778793053000,-2433.07,0.0002682,2]
[422283968,1778793053000,-3630.0,0.00026699,2]
[422283976,1778793053000,-1135.78721297,0.00026849,5]
[422283977,1778793053000,-1053.17428487,0.00026849,5]
[422283978,1778793053000,-1080.35995875,0.00026849,5]
[422283967,1778793053000,-1223.0,0.00026699,2]
[422283979,1778793053000,-1040.32233256,0.00026849,5]
[422283970,1778793053000,-6445.64661898,0.000268,2]
[422283969,1778793053000,-202.01375838,0.0002679,20]
[422283971,1778793053000,-1086.43043496,0.00026819,2]
[422283974,1778793053000,-1013.6174472,0.00026849,5]
[422283975,1778793053000,-1043.86727355,0.00026849,5]
[422283973,1778793053000,-1104.65787409,0.00026849,5]
[422284006,1778793053000,-1001.9,0.000273,2]
[422283980,1778793053000,-994.39411515,0.00026849,5]
[422283981,1778793053000,-150.0,0.00026849,2]
[422283983,1778793053000,-1000.0,0.00026911,2]
[422283982,1778793053000,-1000.0,0.00026883,2]
[422283993,1778793053000,-2433.07,0.00027108,7]
[422283991,1778793053000,-1000.0,0.00027025,2]
[422283992,1778793053000,-6445.64661898,0.000271,2]
[422283984,1778793053000,-1000.0,0.00026933,2]
[422283985,1778793053000,-262.97905312,0.00026942,7]
[422283986,1778793053000,-2433.07,0.00026964,7]
[422283990,1778793053000,-2570.744474,0.0002701,2]
[422283987,1778793053000,-500.0,0.00026985,2]
[422283989,1778793053000,-2000.0,0.00027,2]
[422283988,1778793053000,-1000.0,0.00026996,2]
[422284005,1778793053000,-6445.64661898,0.000273,2]
[422283995,1778793053000,-568.0,0.00027205,4]
[422283960,1778793053000,-568.0,0.00026644,4]
[422283964,1778793053000,-625.0,0.00026699,2]
[422284033,1778793054000,-1916.83374946,0.00027397,7]
[422284031,1778793054000,-2000.0,0.00027397,7]
[422284034,1778793054000,-151.16892255,0.00027397,2]
[422284029,1778793054000,-1009.93,0.00027397,2]
[422284030,1778793054000,-2000.0,0.00027397,7]
[422284035,1778793054000,-749.99,0.00027397,2]
[422284032,1778793054000,-2000.0,0.00027397,7]
[422284028,1778793054000,-2000.0,0.00027397,7]
[422284207,1778793055000,-543.52046,0.00028767,7]
[422284182,1778793055000,-8163.28,0.00027639,7]
[422284181,1778793055000,-272.0,0.00027616,14]
[422284184,1778793055000,-200.0,0.00027671,2]
[422284187,1778793055000,-568.0,0.00027767,5]
[422284186,1778793055000,-175.0,0.00027717,120]
[422284188,1778793055000,-2165.53,0.000278,7]
[422284195,1778793055000,-214.95940296,0.00028,10]
[422284192,1778793055000,-208.3309892,0.00028,10]
[422284194,1778793055000,-1291.11,0.00028,7]
[422284185,1778793055000,-152.0,0.00027703,3]
[422284193,1778793055000,-600.0,0.00028,2]
[422284190,1778793055000,-500.0,0.000278,7]
[422284189,1778793055000,-2945.02,0.000278,7]
[422284191,1778793055000,-157.0,0.0002792,3]
[422284179,1778793055000,-1001.9,0.000275,2]
[422284196,1778793055000,-150.0,0.00028192,2]
[422284200,1778793055000,-1771.03640697,0.00028311,30]
[422284199,1778793055000,-2945.02,0.000283,7]
[422284198,1778793055000,-2165.53,0.000283,7]
[422284203,1778793055000,-693.3919763,0.00028462,2]
[422284206,1778793055000,-543.52046,0.00028767,7]
[422284205,1778793055000,-156.58,0.00028493,2]
[422284201,1778793055000,-1106.10975102,0.00028321,3]
[422284202,1778793055000,-568.0,0.00028329,6]
[422284204,1778793055000,-804.17102365,0.00028462,2]
[422284218,1778793055000,-543.52046,0.00028767,7]
[422284197,1778793055000,-2254.1,0.00028267,2]
[422284178,1778793055000,-177.8782401,0.000275,120]
[422284176,1778793055000,-1001.9,0.00027471,2]
[422284219,1778793055000,-543.52046,0.00028767,7]
[422284157,1778793055000,-200.0,0.00027397,7]
[422284156,1778793055000,-200.0,0.00027397,7]
[422284159,1778793055000,-200.0,0.00027397,7]
[422284158,1778793055000,-200.0,0.00027397,7]
[422284153,1778793055000,-200.0,0.00027397,7]
[422284152,1778793055000,-4399.11,0.00027397,10]
[422284155,1778793055000,-200.0,0.00027397,7]
[422284154,1778793055000,-200.0,0.00027397,7]
[422284162,1778793055000,-200.0,0.00027397,7]
[422284160,1778793055000,-200.0,0.00027397,7]
[422284163,1778793055000,-200.0,0.00027397,7]
[422284166,1778793055000,-200.0,0.00027397,7]
[422284167,1778793055000,-175.53792046,0.00027397,7]
[422284164,1778793055000,-200.0,0.00027397,7]
[422284161,1778793055000,-200.0,0.00027397,7]
[422284168,1778793055000,-150.0,0.00027397,2]
[422284165,1778793055000,-200.0,0.00027397,7]
[422284171,1778793055000,-2059.85,0.000274,14]
[422284170,1778793055000,-500.0,0.00027398,2]
[422284169,1778793055000,-528.55151766,0.00027397,7]
[422284173,1778793055000,-2945.02,0.000274,7]
[422284183,1778793055000,-200.0,0.00027671,2]
[422284174,1778793055000,-1001.9,0.00027414,2]
[422284172,1778793055000,-2165.53,0.000274,7]
[422284175,1778793055000,-1001.9,0.00027443,2]
[422284180,1778793055000,-150.0,0.0002761,2]
[422284177,1778793055000,-519.29,0.00027497,7]
[422284210,1778793055000,-543.52046,0.00028767,7]
[422284226,1778793055000,-500.0,0.00028768,2]
[422284215,1778793055000,-543.52046,0.00028767,7]
[422284246,1778793055000,-2945.02,0.000296,7]
[422284248,1778793055000,-926.0,0.00029699,2]
[422284252,1778793055000,-3630.0,0.00029699,2]
[422284245,1778793055000,-150.0,0.00029589,30]
[422284249,1778793055000,-625.0,0.00029699,2]
[422284256,1778793055000,-240.75254646,0.0002999,2]
[422284251,1778793055000,-1223.0,0.00029699,2]
[422284253,1778793055000,-150.0,0.00029819,2]
[422284255,1778793055000,-2165.53,0.000299,7]
[422284250,1778793055000,-3542.0,0.00029699,2]
[422284247,1778793055000,-150.0,0.00029601,2]
[422284254,1778793055000,-4799.37329779,0.000299,2]
[422284257,1778793055000,-108782.6053155,0.0003,5]
[422284261,1778793055000,-87877.0,0.0003,2]
[422284259,1778793055000,-252.66873104,0.0003,120]
[422284260,1778793055000,-20170.11975411,0.0003,2]
[422284266,1778793055000,-212.93510395,0.0003,120]
[422284258,1778793055000,-10000.0,0.0003,10]
[422284268,1778793055000,-311.26101948,0.0003,2]
[422284267,1778793055000,-165.48517158,0.0003,2]
[422284264,1778793055000,-1845.21977072,0.0003,2]
[422284262,1778793055000,-11082.78475601,0.0003,10]
[422284263,1778793055000,-324.24521552,0.0003,2]
[422284265,1778793055000,-500.0,0.0003,2]
[422284208,1778793055000,-543.52046,0.00028767,7]
[422284270,1778793055000,-2945.02,0.0003,7]
[422284271,1778793055000,-650.0,0.0003,2]
[422284241,1778793055000,-568.0,0.00029452,7]
[422284239,1778793055000,-1771.03640697,0.00029224,30]
[422284269,1778793055000,-10119.45472075,0.0003,2]
[422284238,1778793055000,-152.0,0.00029056,4]
[422284242,1778793055000,-163.0,0.0002947,3]
[422284216,1778793055000,-543.52046,0.00028767,7]
[422284214,1778793055000,-543.52046,0.00028767,7]
[422284212,1778793055000,-543.52046,0.00028767,7]
[422284217,1778793055000,-543.52046,0.00028767,7]
[422284209,1778793055000,-543.52046,0.00028767,7]
[422284211,1778793055000,-543.52046,0.00028767,7]
[422284221,1778793055000,-543.52046,0.00028767,7]
[422284222,1778793055000,-543.52046,0.00028767,7]
[422284224,1778793055000,-543.52046,0.00028767,7]
[422284220,1778793055000,-543.52046,0.00028767,7]
[422284231,1778793055000,-2165.53,0.000288,7]
[422284227,1778793055000,-1672.11,0.000288,2]
[422284213,1778793055000,-543.52046,0.00028767,7]
[422284225,1778793055000,-543.520456,0.00028767,7]
[422284223,1778793055000,-543.52046,0.00028767,7]
[422284240,1778793055000,-10000.0,0.00029286,2]
[422284243,1778793055000,-2165.53,0.000295,7]
[422284237,1778793055000,-1000.0,0.00029013,14]
[422284234,1778793055000,-172.0,0.00028997,14]
[422284244,1778793055000,-8163.28,0.00029549,7]
[422284235,1778793055000,-272.0,0.00028997,14]
[422284228,1778793055000,-371.59,0.000288,2]
[422284236,1778793055000,-2059.85,0.00029,14]
[422284233,1778793055000,-2945.02,0.000289,7]
[422284230,1778793055000,-12795.63,0.000288,2]
[422284232,1778793055000,-568.0,0.0002889,6]
[422284229,1778793055000,-30907.82,0.000288,2]
[422284301,1778793056000,-428.0,0.00030504,30]
[422284313,1778793056000,-2160.98269659,0.000307,2]
[422284302,1778793056000,-1953.0,0.00030504,30]
[422284305,1778793056000,-257.0,0.00030518,30]
[422284307,1778793056000,-4071.0,0.00030518,30]
[422284304,1778793056000,-162.0,0.00030518,30]
[422284308,1778793056000,-232.0,0.00030518,30]
[422284306,1778793056000,-2932.0,0.00030518,30]
[422284309,1778793056000,-179.0,0.00030518,30]
[422284312,1778793056000,-2160.98269661,0.000307,2]
[422284303,1778793056000,-358.0,0.00030518,30]
[422284318,1778793056000,-309.54323907,0.00031,2]
[422284311,1778793056000,-2059.85,0.000306,14]
[422284310,1778793056000,-568.0,0.00030575,8]
[422284317,1778793056000,-11418.38812416,0.00031,2]
[422284316,1778793056000,-556.18,0.00030856,30]
[422284315,1778793056000,-1633.762728,0.0003084,2]
[422284319,1778793056000,-926.97,0.00031007,10]
[422284321,1778793056000,-1000.0,0.0003105,2]
[422284331,1778793056000,-1000.0,0.00031258,2]
[422284320,1778793056000,-1000.0,0.0003105,2]
[422284322,1778793056000,-1847.41533141,0.0003105,2]
[422284298,1778793056000,-717.0,0.00030497,30]
[422284332,1778793056000,-1000.0,0.00031258,2]
[422284300,1778793056000,-209.0,0.00030504,30]
[422284284,1778793056000,-151.0,0.00030137,7]
[422284296,1778793056000,-157.0,0.00030241,3]
[422284273,1778793056000,-568.0,0.00030014,7]
[422284272,1778793056000,-200.0,0.0003,2]
[422284275,1778793056000,-2089.0,0.000301,120]
[422284274,1778793056000,-724.85,0.00030082,120]
[422284277,1778793056000,-14062.18211803,0.0003013,2]
[422284283,1778793056000,-151.0,0.00030137,7]
[422284280,1778793056000,-635065.54754086,0.0003013,7]
[422284279,1778793056000,-204.78623452,0.0003013,2]
[422284282,1778793056000,-749.99,0.00030137,2]
[422284276,1778793056000,-1090.01257389,0.0003013,2]
[422284278,1778793056000,-695.31243451,0.0003013,120]
[422284299,1778793056000,-257.0,0.00030497,30]
[422284281,1778793056000,-898920.76877638,0.0003013,7]
[422284288,1778793056000,-200.0,0.00030137,2]
[422284285,1778793056000,-151.0,0.00030137,7]
[422284287,1778793056000,-190.522243,0.00030137,7]
[422284289,1778793056000,-300.0,0.00030137,2]
[422284286,1778793056000,-151.0,0.00030137,7]
[422284297,1778793056000,-152.0,0.00030409,5]
[422284293,1778793056000,-4508.16640697,0.00030137,30]
[422284292,1778793056000,-1439.49482848,0.00030137,2]
[422284291,1778793056000,-235.0,0.00030137,2]
[422284295,1778793056000,-2254.1,0.00030239,2]
[422284294,1778793056000,-15775.86246227,0.000302,2]
[422284290,1778793056000,-300.0,0.00030137,2]
[422284324,1778793056000,-150.0,0.00031081,2]
[422284314,1778793056000,-2160.98269659,0.000307,2]
[422284328,1778793056000,-833.92535153,0.00031201,2]
[422284367,1778793056000,-395.0,0.00032,120]
[422284359,1778793056000,-568.0,0.00031699,9]
[422284360,1778793056000,-152.0,0.00031762,6]
[422284358,1778793056000,-476.0,0.00031671,3]
[422284365,1778793056000,-1760.15619245,0.00032,2]
[422284364,1778793056000,-3557.20329659,0.00032,120]
[422284357,1778793056000,-500.0,0.00031549,30]
[422284366,1778793056000,-14279.3709408,0.00032,5]
[422284363,1778793056000,-6641.25640695,0.00031963,30]
[422284361,1778793056000,-210.28,0.000319,6]
[422284362,1778793056000,-150.0,0.00031956,30]
[422284356,1778793056000,-179.0,0.00031518,30]
[422284368,1778793056000,-2165.53,0.00032,7]
[422284377,1778793056000,-179.3,0.00032105,4]
[422284373,1778793056000,-200.0,0.00032055,2]
[422284372,1778793056000,-500.0,0.00032037,2]
[422284378,1778793056000,-271.0,0.00032195,30]
[422284370,1778793056000,-700.0,0.00032,2]
[422284376,1778793056000,-179.3,0.00032105,4]
[422284374,1778793056000,-177.0,0.00032085,30]
[422284375,1778793056000,-2059.85,0.000321,14]
[422284379,1778793056000,-150.0,0.00032204,2]
[422284380,1778793056000,-2254.1,0.0003221,5]
[422284329,1778793056000,-1000.0,0.00031258,2]
[422284371,1778793056000,-214.95940296,0.00032,30]
[422284351,1778793056000,-162.0,0.00031518,30]
[422284369,1778793056000,-208.3309892,0.00032,30]
[422284353,1778793056000,-2932.0,0.00031518,30]
[422284354,1778793056000,-4071.0,0.00031518,30]
[422284323,1778793056000,-5633.10640697,0.0003105,30]
[422284325,1778793056000,-200.0,0.00031096,2]
[422284326,1778793056000,-568.0,0.00031137,9]
[422284330,1778793056000,-1000.0,0.00031258,2]
[422284327,1778793056000,-719.04747942,0.00031201,2]
[422284333,1778793056000,-1000.0,0.00031258,2]
[422284336,1778793056000,-163.0,0.00031358,3]
[422284335,1778793056000,-158.69,0.00031258,13]
[422284338,1778793056000,-8163.28,0.00031458,7]
[422284334,1778793056000,-170.12,0.00031258,13]
[422284341,1778793056000,-200.44972037,0.000315,2]
[422284340,1778793056000,-257.0,0.00031497,30]
[422284337,1778793056000,-200.53348284,0.00031437,2]
[422284343,1778793056000,-1000.0,0.000315,7]
[422284349,1778793056000,-233.0,0.00031507,30]
[422284348,1778793056000,-150.0,0.00031507,30]
[422284350,1778793056000,-358.0,0.00031518,30]
[422284344,1778793056000,-209.0,0.00031504,30]
[422284346,1778793056000,-1953.0,0.00031504,30]
[422284352,1778793056000,-257.0,0.00031518,30]
[422284355,1778793056000,-232.0,0.00031518,30]
[422284345,1778793056000,-428.0,0.00031504,30]
[422284342,1778793056000,-150.0,0.000315,2]
[422284339,1778793056000,-717.0,0.00031497,30]
[422284347,1778793056000,-395.77588719,0.00031507,14]
[422284421,1778793057000,-1001.84,0.00032877,2]
[422284422,1778793057000,-749.99,0.00032877,2]
[422284419,1778793057000,-250.0,0.00032806,7]
[422284420,1778793057000,-568.0,0.00032822,10]
[422284423,1778793057000,-185.76,0.00032877,120]
[422284415,1778793057000,-528.78,0.00032757,7]
[422284413,1778793057000,-647.49,0.0003275,7]
[422284410,1778793057000,-1223.0,0.00032699,2]
[422284408,1778793057000,-625.0,0.00032699,2]
[422284409,1778793057000,-3542.0,0.00032699,2]
[422284424,1778793057000,-151.0,0.00032877,7]
[422284414,1778793057000,-924.99,0.00032752,7]
[422284428,1778793057000,-151.0,0.00032877,7]
[422284431,1778793057000,-151.0,0.00032877,7]
[422284425,1778793057000,-151.0,0.00032877,7]
[422284427,1778793057000,-151.0,0.00032877,7]
[422284426,1778793057000,-151.0,0.00032877,7]
[422284430,1778793057000,-349.95,0.00032877,2]
[422284433,1778793057000,-151.0,0.00032877,7]
[422284434,1778793057000,-151.0,0.00032877,7]
[422284432,1778793057000,-151.0,0.00032877,7]
[422284435,1778793057000,-151.0,0.00032877,7]
[422284436,1778793057000,-151.0,0.00032877,7]
[422284437,1778793057000,-151.0,0.00032877,7]
[422284438,1778793057000,-151.0,0.00032877,7]
[422284440,1778793057000,-151.0,0.00032877,7]
[422284412,1778793057000,-1321.41,0.00032748,7]
[422284429,1778793057000,-204.376688,0.00032877,7]
[422284418,1778793057000,-250.0,0.00032806,7]
[422284382,1778793057000,-908.39387695,0.000323,2]
[422284416,1778793057000,-453.24,0.00032757,7]
[422284381,1778793057000,-568.0,0.0003226,10]
[422284383,1778793057000,-1576.0,0.00032311,11]
[422284439,1778793057000,-151.0,0.00032877,7]
[422284385,1778793057000,-163.0,0.00032318,11]
[422284388,1778793057000,-209.0,0.00032504,30]
[422284386,1778793057000,-717.0,0.00032497,30]
[422284384,1778793057000,-246.0,0.00032313,30]
[422284390,1778793057000,-1953.0,0.00032504,30]
[422284387,1778793057000,-257.0,0.00032497,30]
[422284389,1778793057000,-428.0,0.00032504,30]
[422284391,1778793057000,-358.0,0.00032518,30]
[422284392,1778793057000,-162.0,0.00032518,30]
[422284393,1778793057000,-257.0,0.00032518,30]
[422284411,1778793057000,-3630.0,0.00032699,2]
[422284397,1778793057000,-179.0,0.00032518,30]
[422284399,1778793057000,-169.0,0.00032525,2]
[422284398,1778793057000,-300.0,0.00032525,2]
[422284394,1778793057000,-2932.0,0.00032518,30]
[422284395,1778793057000,-4071.0,0.00032518,30]
[422284396,1778793057000,-232.0,0.00032518,30]
[422284401,1778793057000,-1672.11,0.000326,2]
[422284404,1778793057000,-12795.63,0.000326,2]
[422284402,1778793057000,-371.59,0.000326,2]
[422284403,1778793057000,-30907.82,0.000326,2]
[422284405,1778793057000,-1263.38,0.000326,2]
[422284406,1778793057000,-150.0,0.00032636,2]
[422284417,1778793057000,-4908.9668208,0.000328,2]
[422284407,1778793057000,-926.0,0.00032699,2]
[422284400,1778793057000,-157.0,0.00032561,3]
[422284441,1778793057000,-151.0,0.00032877,7]
[422284442,1778793057000,-151.0,0.00032877,7]
[422284452,1778793057000,-414.01791719,0.00032877,2]
[422284476,1778793057000,-42254.0,0.00033358,30]
[422284470,1778793057000,-350.0,0.00033014,5]
[422284472,1778793057000,-42254.0,0.00033119,30]
[422284480,1778793057000,-568.0,0.00033384,11]
[422284481,1778793057000,-42254.0,0.00033477,30]
[422284487,1778793057000,-1953.0,0.00033504,30]
[422284488,1778793057000,-358.0,0.00033518,30]
[422284482,1778793057000,-717.0,0.00033497,30]
[422284493,1778793057000,-232.0,0.00033518,30]
[422284486,1778793057000,-428.0,0.00033504,30]
[422284483,1778793057000,-257.0,0.00033497,30]
[422284485,1778793057000,-209.0,0.00033504,30]
[422284490,1778793057000,-257.0,0.00033518,30]
[422284491,1778793057000,-2932.0,0.00033518,30]
[422284484,1778793057000,-1231.53069123,0.000335,2]
[422284492,1778793057000,-4071.0,0.00033518,30]
[422284489,1778793057000,-162.0,0.00033518,30]
[422284495,1778793057000,-42254.0,0.00033597,30]
[422284505,1778793057000,-42254.0,0.00033955,30]
[422284501,1778793057000,-43304.0,0.00033921,30]
[422284500,1778793057000,-42254.0,0.00033835,30]
[422284498,1778793057000,-43304.0,0.00033614,30]
[422284494,1778793057000,-179.0,0.00033518,30]
[422284497,1778793057000,-155.37996832,0.000336,120]
[422284496,1778793057000,-2059.85,0.000336,14]
[422284504,1778793057000,-568.0,0.00033945,11]
[422284445,1778793057000,-167.10662573,0.00032877,2]
[422284499,1778793057000,-42254.0,0.00033716,30]
[422284503,1778793057000,-864.78058953,0.0003394,2]
[422284474,1778793057000,-42254.0,0.00033239,30]
[422284466,1778793057000,-4998.0,0.00033,2]
[422284502,1778793057000,-745.65223616,0.0003394,2]
[422284471,1778793057000,-152.0,0.00033115,7]
[422284469,1778793057000,-1291.11,0.00033,7]
[422284443,1778793057000,-221.389808,0.00032877,7]
[422284447,1778793057000,-500.0,0.00032877,2]
[422284451,1778793057000,-500.0,0.00032877,2]
[422284448,1778793057000,-500.0,0.00032877,2]
[422284446,1778793057000,-500.0,0.00032877,2]
[422284449,1778793057000,-500.0,0.00032877,2]
[422284450,1778793057000,-500.0,0.00032877,2]